[Event "KAZ-ch 2018"]
[Site "Almaty"]
[Date "2018.04.21"]
[Round "2"]
[White "Makhnev, Denis"]
[Black "Nogerbek, Kazybek"]
[Result "1/2-1/2"]
[ECO "C41"]
[WhiteElo "2409"]
[BlackElo "2323"]
[Annotator "ChessBase"]
[PlyCount "73"]
[EventDate "2018.??.??"]
[EventType "tourn"]
[EventCountry "KAZ"]
[SourceTitle "playchess.com"]
[Source "ChessBase"]
[SourceQuality "1"]
[TimeControl "40/5400+30:1800+30"]

1. d4 {[%emt 0:00:00]} d6 {[%emt 0:00:10]} 2. e4 {[%emt 0:00:00]} Nf6 {[%emt 0:00:16]} 3. Nc3 {[%emt 0:00:06]} e5 {[%emt 0:00:06]} 4. Nf3 {[%emt 0:00:06]} Nbd7 {[%emt 0:00:06]} 5. Bc4 {[%emt 0:00:25]} Be7 {[%emt 0:00:09]} 6. O-O {[%emt 0:00:09]} O-O {[%emt 0:00:06]} 7. Re1 {[%emt 0:00:16]} a6 {[%emt 0:00:12]} 8. a4 {[%emt 0:00:08]} b6 {[%emt 0:00:05]} 9. Bf1 {[%emt 0:08:07]} Bb7 {[%emt 0:02:32]} 10. dxe5 {[%emt 0:06:13]} dxe5 {[%emt 0:03:20]} 11. Nd5 {[%emt 0:00:07]} Nxd5 {[%emt 0:02:23]} 12. exd5 {[%emt 0:01:51]} Bd6 {[%emt 0:02:52]} 13. c4 {[%emt 0:03:38]} Re8 {[%emt 0:03:18]} 14. Bd3 {[%emt 0:04:25]} h6 {[%emt 0:02:50]} 15. Bc2 {[%emt 0:09:46]} Nf6 {[%emt 0:03:32]} 16. b3 {[%emt 0:19:29]} c6 {[%emt 0:02:27]} 17. dxc6 {[%emt 0:01:15]} Bxc6 {[%emt 0:00:41]} 18. Bb2 {[%emt 0:07:41]} Qc7 {[%emt 0:02:19]} 19. Nh4 {[%emt 0:02:20]} Rad8 {[%emt 0:06:05]} 20. Qe2 {[%emt 0:00:09]} Bb4 {[%emt 0:04:23]} 21. Red1 {[%emt 0:00:17]} Rxd1+ {[%emt 0:01:30]} 22. Rxd1 {[%emt 0:00:05]} b5 {[%emt 0:05:09]} 23. axb5 {[%emt 0:00:58]} axb5 {[%emt 0:01:19]} 24. Nf5 {[%emt 0:06:59]} Bf8 {[%emt 0:01:38]} 25. Qe3 {[%emt 0:02:21]} bxc4 {[%emt 0:03:49]} 26. bxc4 {[%emt 0:02:42]} Bd7 {[%emt 0:02:55]} 27. Qe2 {[%emt 0:02:32]} Bc5 {[%emt 0:08:25]} 28. Qf3 {[%emt 0:04:34]} Bxf5 {[%emt 0:03:06]} 29. Qxf5 {[%emt 0:01:53]} Bd4 {[%emt 0:00:14]} 30. Bxd4 {[%emt 0:00:42]} exd4 {[%emt 0:00:06]} 31. Qd3 {[%emt 0:00:03]} Qc5 {[%emt 0:00:35]} 32. h3 {[%emt 0:01:02]} Rd8 {[%emt 0:00:32]} 33. Rb1 {[%emt 0:00:32]} g6 {[%emt 0:01:00]} 34. Rb5 {[%emt 0:00:29]} Qe7 {[%emt 0:00:19]} 35. g3 {[%emt 0:00:37]} Kg7 {[%emt 0:01:13]} 36. Qf3 {[%emt 0:02:39]} Nd7 {[%emt 0:05:39]} 37. Kg2 {[%emt 0:02:38]} 1/2-1/2

[Event "KAZ-ch 2018"]
[Site "Almaty"]
[Date "2018.04.22"]
[Round "3"]
[White "Nogerbek, Kazybek"]
[Black "Suleymenov, Alisher"]
[Result "1/2-1/2"]
[ECO "B48"]
[WhiteElo "2323"]
[BlackElo "2351"]
[Annotator "ChessBase"]
[PlyCount "160"]
[EventDate "2018.??.??"]
[EventType "tourn"]
[EventCountry "KAZ"]
[SourceTitle "playchess.com"]
[Source "ChessBase"]
[SourceQuality "1"]
[TimeControl "40/5400+30:1800+30"]

1. e4 {[%emt 0:00:00]} c5 {[%emt 0:02:24]} 2. Nf3 {[%emt 0:00:00]} e6 {[%emt 0:00:04]} 3. d4 {[%emt 0:00:00]} cxd4 {[%emt 0:00:05]} 4. Nxd4 {[%emt 0:00:07]} Nc6 {[%emt 0:00:04]} 5. Nc3 {[%emt 0:00:08]} Qc7 {[%emt 0:00:04]} 6. Be3 {[%emt 0:00:08]} a6 {[%emt 0:00:08]} 7. Qd2 {[%emt 0:00:06]} Nf6 {[%emt 0:00:08]} 8. O-O-O {[%emt 0:00:07]} Be7 {[%emt 0:00:50]} 9. f3 {[%emt 0:01:02]} b5 {[%emt 0:00:04]} 10. Nxc6 {[%emt 0:03:00]} dxc6 {[%emt 0:00:31]} 11. Qf2 {[%emt 0:00:13]} e5 {[%emt 0:07:07]} 12. Bb6 {[%emt 0:06:53]} Qb7 {[%emt 0:00:54]} 13. Bc5 {[%emt 0:00:14]} O-O {[%emt 0:02:22]} 14. Be2 {[%emt 0:00:29]} Be6 {[%emt 0:03:07]} 15. Kb1 {[%emt 0:01:49]} Bxc5 {[%emt 0:25:30]} 16. Qxc5 {[%emt 0:02:24]} Nd7 {[%emt 0:00:03]} 17. Qd6 {[%emt 0:00:28]} Rfe8 {[%emt 0:01:37]} 18. Rd2 {[%emt 0:16:09]} a5 {[%emt 0:00:16]} 19. Nd1 {[%emt 0:01:46]} Qb6 {[%emt 0:08:18]} 20. Qd3 {[%emt 0:08:07]} Nc5 {[%emt 0:02:36]} 21. Qe3 {[%emt 0:01:46]} Reb8 {[%emt 0:09:30]} 22. Rd6 {[%emt 0:03:38]} a4 {[%emt 0:11:35]} 23. Nc3 {[%emt 0:17:12]} a3 {[%emt 0:06:34]} 24. b3 {[%emt 0:03:51]} Na4 {[%emt 0:03:54]} 25. Rd3 {[%emt 0:03:05]} Qxe3 {[%emt 0:08:13]} 26. Rxe3 {[%emt 0:00:09]} Nc5 {[%emt 0:00:09]} 27. Nd1 {[%emt 0:01:41]} b4 {[%emt 0:01:45]} 28. Nf2 {[%emt 0:00:45]} Rd8 {[%emt 0:01:44]} 29. Nd3 {[%emt 0:00:34]} Nxd3 {[%emt 0:00:05]} 30. Rxd3 {[%emt 0:00:06]} Rxd3 {[%emt 0:00:06]} 31. Bxd3 {[%emt 0:00:40]} Rd8 {[%emt 0:00:25]} 32. Rd1 {[%emt 0:01:15]} Kf8 {[%emt 0:00:21]} 33. c3 {[%emt 0:03:13]} c5 {[%emt 0:00:32]} 34. Be2 {[%emt 0:02:04]} Rxd1+ {[%emt 0:00:34]} 35. Bxd1 {[%emt 0:00:05]} Ke7 {[%emt 0:04:21]} 36. Kc2 {[%emt 0:00:14]} f5 {[%emt 0:01:42]} 37. c4 {[%emt 0:01:04]} Kf6 {[%emt 0:00:22]} 38. Kd3 {[%emt 0:00:18]} f4 {[%emt 0:00:51]} 39. Ke2 {[%emt 0:02:44]} g5 {[%emt 0:00:11]} 40. Kf2 {[%emt 0:01:07]} Kg6 {[%emt 0:30:32]} 41. Be2 {[%emt 0:32:47]} Kh5 {[%emt 0:00:00]} 42. g4+ {[%emt 0:00:00]} fxg3+ {[%emt 0:00:00]} 43. Kxg3 {[%emt 0:00:00]} Kg6 {[%emt 0:00:00]} 44. Bd1 {[%emt 0:00:00]} Bd7 {[%emt 0:00:00]} 45. Be2 {[%emt 0:00:00]} Bc6 {[%emt 0:00:00]} 46. Bd3 {[%emt 0:00:00]} Bd7 {[%emt 0:00:00]} 47. Be2 {[%emt 0:00:00]} Be6 {[%emt 0:00:00]} 48. Bd1 {[%emt 0:00:00]} Kf6 {[%emt 0:00:00]} 49. Be2 {[%emt 0:00:00]} Bf7 {[%emt 0:00:00]} 50. Bd1 {[%emt 0:00:00]} Bg6 {[%emt 0:00:00]} 51. Bc2 {[%emt 0:00:00]} Kg7 {[%emt 0:00:00]} 52. Bd3 {[%emt 0:00:00]} Kh6 {[%emt 0:00:06]} 53. Bc2 {[%emt 0:00:00]} Bf7 {[%emt 0:00:49]} 54. Bd1 {[%emt 0:00:00]} Be6 {[%emt 0:00:35]} 55. Be2 {[%emt 0:00:00]} Kg6 {[%emt 0:00:09]} 56. Bd1 {[%emt 0:00:00]} Kg7 {[%emt 0:00:49]} 57. Be2 {[%emt 0:00:00]} Bf7 {[%emt 0:00:27]} 58. Bd1 {[%emt 0:00:00]} Bh5 {[%emt 0:00:05]} 59. Be2 {[%emt 0:00:00]} Kf6 {[%emt 0:00:21]} 60. Bd1 {[%emt 0:00:00]} Bg6 {[%emt 0:00:04]} 61. Bc2 {[%emt 0:00:00]} Kf7 {[%emt 0:00:14]} 62. Bd3 {[%emt 0:00:00]} Kf8 {[%emt 0:00:10]} 63. Kg4 {[%emt 0:00:00]} h6 {[%emt 0:00:01]} 64. Kg3 {[%emt 0:00:00]} Kg7 {[%emt 0:00:18]} 65. Bc2 {[%emt 0:00:00]} Be8 {[%emt 0:00:21]} 66. Bd1 {[%emt 0:00:00]} Bd7 {[%emt 0:00:08]} 67. Be2 {[%emt 0:00:00]} Kg6 {[%emt 0:00:03]} 68. Bd1 {[%emt 0:00:00]} Bc6 {[%emt 0:00:04]} 69. Bc2 {[%emt 0:00:00]} Bb7 {[%emt 0:00:10]} 70. Bd3 {[%emt 0:00:00]} Ba6 {[%emt 0:00:04]} 71. Bc2 {[%emt 0:00:00]} Bc8 {[%emt 0:00:04]} 72. Bd1 {[%emt 0:00:00]} Bd7 {[%emt 0:00:13]} 73. Be2 {[%emt 0:00:00]} Kf6 {[%emt 0:00:08]} 74. Bd1 {[%emt 0:00:00]} Bc6 {[%emt 0:00:25]} 75. Bc2 {[%emt 0:00:00]} h5 {[%emt 0:00:04]} 76. h4 {[%emt 0:00:00]} Kg6 {[%emt 0:00:03]} 77. Bd3 {[%emt 0:00:00]} Kh6 {[%emt 0:00:05]} 78. Bc2 {[%emt 0:00:00]} Be8 {[%emt 0:00:19]} 79. Bd3 {[%emt 0:00:00]} Bd7 {[%emt 0:00:03]} 80. Be2 {[%emt 0:00:00]} Kg6 {[%emt 0:00:03]} 1/2-1/2

[Event "KAZ-ch 2018"]
[Site "Almaty"]
[Date "2018.04.24"]
[Round "5"]
[White "Igambergenov, Alibek"]
[Black "Agmanov, Zhandos"]
[Result "0-1"]
[ECO "A13"]
[WhiteElo "2296"]
[BlackElo "2360"]
[Annotator "ChessBase"]
[PlyCount "148"]
[EventDate "2018.??.??"]
[EventType "tourn"]
[EventCountry "KAZ"]
[SourceTitle "playchess.com"]
[Source "ChessBase"]
[SourceQuality "1"]
[TimeControl "40/5400+30:1800+30"]

1. Nf3 {[%emt 0:00:00]} Nf6 {[%emt 0:01:08]} 2. c4 {[%emt 0:00:00]} e6 {[%emt 0:00:35]} 3. g3 {[%emt 0:00:00]} d5 {[%emt 0:02:07]} 4. Bg2 {[%emt 0:00:00]} dxc4 {[%emt 0:02:46]} 5. Qa4+ {[%emt 0:00:09]} Nbd7 {[%emt 0:00:06]} 6. O-O {[%emt 0:00:19]} c5 {[%emt 0:02:25]} 7. Qxc4 {[%emt 0:00:27]} b6 {[%emt 0:00:14]} 8. b3 {[%emt 0:08:56]} Bb7 {[%emt 0:01:03]} 9. Bb2 {[%emt 0:00:11]} a6 {[%emt 0:04:45]} 10. Qc2 {[%emt 0:01:05]} Be7 {[%emt 0:01:20]} 11. d3 {[%emt 0:01:39]} O-O {[%emt 0:00:27]} 12. a3 {[%emt 0:00:32]} Rc8 {[%emt 0:01:21]} 13. Nbd2 {[%emt 0:00:21]} b5 {[%emt 0:00:31]} 14. Rac1 {[%emt 0:01:08]} Qb6 {[%emt 0:06:21]} 15. Qb1 {[%emt 0:00:21]} Rfd8 {[%emt 0:01:08]} 16. Qa1 {[%emt 0:08:12]} Bf8 {[%emt 0:00:40]} 17. Rc2 {[%emt 0:05:55]} Qa7 {[%emt 0:07:42]} 18. Rfc1 {[%emt 0:09:27]} Qa8 {[%emt 0:00:43]} 19. h3 Bd5 {[%emt 0:04:03]} 20. Ne1 {[%emt 0:12:31]} Bxg2 {[%emt 0:03:59]} 21. Nxg2 {[%emt 0:00:10]} Nd5 {[%emt 0:00:12]} 22. Ne4 {[%emt 0:05:53]} f6 {[%emt 0:01:11]} 23. Nh4 {[%emt 0:05:41]} Qb7 {[%emt 0:10:41]} 24. Qa2 {[%emt 0:04:28]} Rc7 {[%emt 0:17:24]} 25. Nd2 {[%emt 0:25:54]} Rcc8 {[%emt 0:18:13]} 26. e4 {[%emt 0:01:42]} Nc7 {[%emt 0:00:09]} 27. d4 {[%emt 0:03:30]} cxd4 {[%emt 0:01:15]} 28. Bxd4 {[%emt 0:00:04]} b4 {[%emt 0:00:47]} 29. a4 {[%emt 0:02:53]} e5 {[%emt 0:00:55]} 30. Be3 {[%emt 0:00:04]} Ne6 {[%emt 0:00:05]} 31. Qb2 {[%emt 0:01:45]} Ndc5 {[%emt 0:00:44]} 32. Qb1 {[%emt 0:00:09]} Rc7 {[%emt 0:06:03]} 33. Rc4 {[%emt 0:00:43]} Rdc8 {[%emt 0:00:17]} 34. R1c2 {[%emt 0:00:41]} a5 {[%emt 0:00:53]} 35. Nhf3 {[%emt 0:01:19]} Rc6 {[%emt 0:01:09]} 36. Kh2 {[%emt 0:00:23]} Qd7 {[%emt 0:00:11]} 37. Qf1 {[%emt 0:00:22]} R6c7 {[%emt 0:00:35]} 38. Kg2 {[%emt 0:01:09]} Kh8 {[%emt 0:00:16]} 39. Qe2 {[%emt 0:00:44]} Qf7 {[%emt 0:00:09]} 40. Ne1 {[%emt 0:00:22]} Qd7 {[%emt 0:31:39]} 41. f4 {[%emt 0:04:20]} exf4 {[%emt 0:00:00]} 42. gxf4 {[%emt 0:00:10]} f5 {[%emt 0:00:00]} 43. exf5 {[%emt 0:09:47]} Qd5+ {[%emt 0:00:00]} 44. Kg1 {[%emt 0:00:16]} Qxf5 {[%emt 0:00:00]} 45. Qg4 {[%emt 0:00:50]} g6 {[%emt 0:00:00]} 46. Qxf5 {[%emt 0:05:33]} gxf5 {[%emt 0:00:00]} 47. Nef3 {[%emt 0:00:22]} Bd6 {[%emt 0:00:00]} 48. Nd4 {[%emt 0:02:59]} Bxf4 {[%emt 0:00:00]} 49. Nxf5 {[%emt 0:05:55]} Bxe3+ {[%emt 0:00:00]} 50. Nxe3 {[%emt 0:00:02]} Rd8 {[%emt 0:00:00]} 51. Nf5 {[%emt 0:05:18]} Rcd7 {[%emt 0:00:24]} 52. Nf3 {[%emt 0:00:36]} Rd5 {[%emt 0:02:29]} 53. Ne3 {[%emt 0:00:39]} Rg8+ {[%emt 0:02:06]} 54. Kf2 {[%emt 0:00:30]} Rh5 {[%emt 0:01:03]} 55. Nd2 {[%emt 0:00:28]} Nd3+ {[%emt 0:00:37]} 56. Ke2 {[%emt 0:00:07]} Nef4+ {[%emt 0:01:29]} 57. Kd1 {[%emt 0:00:19]} Rxh3 {[%emt 0:00:13]} 58. Nef1 {[%emt 0:00:22]} Nd5 {[%emt 0:00:57]} 59. Ne4 {[%emt 0:01:16]} Rh1 {[%emt 0:00:16]} 60. Kd2 {[%emt 0:00:19]} Ne5 {[%emt 0:00:18]} 61. Neg3 {[%emt 0:00:42]} Nxc4+ {[%emt 0:02:58]} 62. bxc4 {[%emt 0:00:01]} Rxf1 {[%emt 0:00:55]} 63. Nxf1 {[%emt 0:00:02]} Nc3 {[%emt 0:00:08]} 64. Kd3 {[%emt 0:01:21]} Rd8+ {[%emt 0:00:10]} 65. Ke3 {[%emt 0:00:05]} Nxa4 {[%emt 0:00:07]} 66. Nd2 {[%emt 0:01:00]} Nc5 {[%emt 0:00:31]} 67. Rb2 {[%emt 0:00:08]} Rd3+ {[%emt 0:00:59]} 68. Ke2 {[%emt 0:00:08]} Rc3 {[%emt 0:00:07]} 69. Rb1 {[%emt 0:00:31]} b3 {[%emt 0:01:23]} 70. Rf1 {[%emt 0:00:04]} Rc2 {[%emt 0:00:47]} 71. Ke3 {[%emt 0:00:20]} b2 {[%emt 0:00:46]} 72. Rf8+ {[%emt 0:00:03]} Kg7 {[%emt 0:00:03]} 73. Rb8 {[%emt 0:00:03]} a4 {[%emt 0:00:11]} 74. Nb1 {[%emt 0:00:25]} Nb3 {[%emt 0:00:21] Kd4} 0-1

[Event "KAZ-ch 2018"]
[Site "Almaty"]
[Date "2018.04.28"]
[Round "9"]
[White "Ibrayev, Nurlan"]
[Black "Igambergenov, Alibek"]
[Result "0-1"]
[ECO "A58"]
[WhiteElo "2394"]
[BlackElo "2296"]
[Annotator "ChessBase"]
[PlyCount "126"]
[EventDate "2018.??.??"]
[EventType "tourn"]
[EventCountry "KAZ"]
[SourceTitle "playchess.com"]
[Source "ChessBase"]
[SourceQuality "1"]
[TimeControl "40/5400+30:1800+30"]

1. d4 {[%emt 0:00:00]} Nf6 {[%emt 0:00:27]} 2. c4 {[%emt 0:00:19]} c5 {[%emt 0:00:05]} 3. d5 {[%emt 0:00:37]} b5 {[%emt 0:00:04]} 4. cxb5 {[%emt 0:01:22]} a6 {[%emt 0:00:03]} 5. bxa6 {[%emt 0:00:04]} g6 {[%emt 0:00:04]} 6. Nc3 {[%emt 0:00:02]} Bg7 {[%emt 0:00:04]} 7. e4 {[%emt 0:00:08]} O-O {[%emt 0:00:08]} 8. Nf3 {[%emt 0:05:32]} Qa5 {[%emt 0:02:57]} 9. Nd2 {[%emt 0:02:27]} Bxa6 {[%emt 0:04:36]} 10. Bxa6 {[%emt 0:00:30]} Qxa6 {[%emt 0:00:04]} 11. Qe2 {[%emt 0:00:33]} Qxe2+ {[%emt 0:00:40]} 12. Kxe2 {[%emt 0:00:08]} e6 {[%emt 0:00:06]} 13. Rd1 {[%emt 0:05:00]} Re8 {[%emt 0:11:44]} 14. Kf1 {[%emt 0:02:18]} Na6 {[%emt 0:00:12]} 15. Nc4 {[%emt 0:00:28]} Nb4 {[%emt 0:04:12]} 16. f3 {[%emt 0:29:20]} exd5 {[%emt 0:09:14]} 17. exd5 {[%emt 0:00:12]} Nc2 {[%emt 0:00:08]} 18. Rb1 {[%emt 0:00:14]} Reb8 {[%emt 0:00:13]} 19. b3 {[%emt 0:11:30]} Ne8 {[%emt 0:11:33]} 20. Bf4 {[%emt 0:12:06]} Rb4 {[%emt 0:08:02]} 21. Ne4 {[%emt 0:10:35]} Bd4 {[%emt 0:11:03]} 22. a4 {[%emt 0:03:42]} f5 {[%emt 0:00:36]} 23. Ned6 {[%emt 0:03:38]} Nc7 {[%emt 0:11:15]} 24. Nxf5 {[%emt 0:08:50]} Nxd5 {[%emt 0:01:25]} 25. Nxd4 {[%emt 0:00:13]} Nxd4 {[%emt 0:03:06]} 26. Bd6 {[%emt 0:00:50]} Nc3 {[%emt 0:01:42]} 27. Bxc5 {[%emt 0:01:03]} Rxb3 {[%emt 0:00:04]} 28. Rxb3 {[%emt 0:00:27]} Nxb3 {[%emt 0:00:04]} 29. Rd3 {[%emt 0:00:33]} Nxc5 {[%emt 0:00:44]} 30. Rxc3 {[%emt 0:00:06]} Rxa4 {[%emt 0:01:09]} 31. Nb6 {[%emt 0:00:22]} Ra5 {[%emt 0:02:20]} 32. Re3 {[%emt 0:00:25]} Kf7 {[%emt 0:00:12]} 33. Kf2 {[%emt 0:00:21]} Ra6 {[%emt 0:00:54]} 34. Nc4 {[%emt 0:01:39]} Ne6 {[%emt 0:00:29]} 35. Rd3 {[%emt 0:00:22]} Ra2+ {[%emt 0:00:12]} 36. Kg3 {[%emt 0:00:08]} Rxg2+ {[%emt 0:00:35]} 37. Kxg2 {[%emt 0:00:14]} Nf4+ {[%emt 0:00:04]} 38. Kf2 {[%emt 0:00:06]} Nxd3+ {[%emt 0:00:04]} 39. Ke3 {[%emt 0:00:03]} Nc5 {[%emt 0:00:19]} 40. Kd4 {[%emt 0:00:14]} Ne6+ {[%emt 0:31:22]} 41. Ke5 {[%emt 0:30:01]} Ke7 {[%emt 0:00:59]} 42. f4 {[%emt 0:01:02]} Nd8 {[%emt 0:01:34]} 43. Ne3 {[%emt 0:02:25]} Nf7+ {[%emt 0:02:58]} 44. Kd5 {[%emt 0:01:04]} Kf6 {[%emt 0:00:38]} 45. Nc4 {[%emt 0:00:00]} Kf5 {[%emt 0:00:00]} 46. Nb6 {[%emt 0:00:00]} d6 {[%emt 0:00:00]} 47. Nd7 {[%emt 0:00:00]} h5 {[%emt 0:00:00]} 48. Nf8 {[%emt 0:00:00]} h4 {[%emt 0:00:00]} 49. Kd4 {[%emt 0:00:00]} h3 {[%emt 0:00:00]} 50. Ke3 {[%emt 0:00:00]} Nd8 {[%emt 0:00:00]} 51. Kf3 {[%emt 0:00:00]} Ne6 {[%emt 0:00:00]} 52. Nd7 {[%emt 0:00:00]} Nxf4 {[%emt 0:00:00]} 53. Nb8 {[%emt 0:00:14]} g5 {[%emt 0:00:00]} 54. Nc6 {[%emt 0:00:05]} g4+ {[%emt 0:00:00]} 55. Kg3 {[%emt 0:00:01]} Kg5 {[%emt 0:00:00]} 56. Nd4 {[%emt 0:00:13]} Nh5+ {[%emt 0:00:00]} 57. Kf2 {[%emt 0:00:01]} Kf4 {[%emt 0:00:00]} 58. Ne6+ {[%emt 0:00:18]} Ke5 {[%emt 0:00:00]} 59. Ng5 {[%emt 0:00:21]} d5 {[%emt 0:00:00]} 60. Nf7+ {[%emt 0:00:19]} Kf4 {[%emt 0:00:00]} 61. Nd8 {[%emt 0:00:11]} Ng7 {[%emt 0:00:00]} 62. Nc6 {[%emt 0:00:07]} Nf5 {[%emt 0:00:00]} 63. Nb4 {[%emt 0:00:10]} Ke5 0-1

[Event "KAZ-ch 2018"]
[Site "Almaty"]
[Date "2018.04.28"]
[Round "9"]
[White "Suleymenov, Alisher"]
[Black "Agmanov, Zhandos"]
[Result "1/2-1/2"]
[ECO "E12"]
[WhiteElo "2351"]
[BlackElo "2360"]
[Annotator "RC"]
[PlyCount "38"]
[EventDate "2018.??.??"]
[EventType "tourn"]
[EventCountry "KAZ"]
[SourceTitle "playchess.com"]
[Source "ChessBase"]
[SourceQuality "1"]
[TimeControl "40/5400+30:1800+30"]

1. d4 {[%emt 0:00:00]} Nf6 {[%emt 0:01:03]} 2. c4 {[%emt 0:00:02]} e6 {[%emt 0:00:30]} 3. Nf3 {[%emt 0:00:30]} b6 {[%emt 0:00:30]} 4. a3 {[%emt 0:00:30]} Bb7 {[%emt 0:00:30]} 5. Nc3 {[%emt 0:00:30]} d5 {[%emt 0:00:30]} 6. Bg5 {[%emt 0:00:30]} Be7 {[%emt 0:00:30]} 7. e3 {[%emt 0:01:23]} Nbd7 {[%emt 0:01:53]} 8. Qc2 {[%emt 0:02:00]} O-O {[%emt 0:01:01]} 9. cxd5 {[%emt 0:00:02]} exd5 {[%emt 0:01:12]} 10. Bd3 {[%emt 0:02:26]} c5 {[%emt 0:08:09]} 11. O-O {[%emt 0:01:31]} Ne4 {[%emt 0:06:05]} 12. Bf4 {[%emt 0:08:00]} Ndf6 {[%emt 0:08:39]} 13. dxc5 {[%emt 0:17:39]} bxc5 {[%emt 0:02:41]} 14. Rfd1 {[%emt 0:00:46]} Nxc3 {[%emt 0:01:20]} 15. Qxc3 {[%emt 0:09:07]} Qb6 {[%emt 0:10:19]} 16. Rac1 {[%emt 0:04:27]} Rfd8 {[%emt 0:04:23]} 17. Qc2 {[%emt 0:05:56]} a5 {[%emt 0:11:18]} 18. h3 {[%emt 0:10:13]} h6 {[%emt 0:07:17]} 19. Qe2 {[%emt 0:11:59]} Qe6 {[%emt 0:09:42]} 1/2-1/2

[Event "KAZ-ch 2018"]
[Site "Almaty"]
[Date "2018.04.28"]
[Round "9"]
[White "Nogerbek, Kazybek"]
[Black "Zhalmakhanov, Ramazan"]
[Result "1/2-1/2"]
[ECO "C95"]
[WhiteElo "2323"]
[BlackElo "2271"]
[Annotator "RC"]
[PlyCount "79"]
[EventDate "2018.??.??"]
[EventType "tourn"]
[EventCountry "KAZ"]
[SourceTitle "playchess.com"]
[Source "ChessBase"]
[SourceQuality "1"]
[TimeControl "40/5400+30:1800+30"]

1. e4 {[%emt 0:00:00]} e5 {[%emt 0:00:12]} 2. Nf3 {[%emt 0:00:00]} Nc6 {[%emt 0:00:05]} 3. Bb5 {[%emt 0:00:00]} a6 {[%emt 0:00:57]} 4. Ba4 {[%emt 0:00:00]} Nf6 {[%emt 0:00:03]} 5. O-O {[%emt 0:00:00]} Be7 {[%emt 0:01:41]} 6. Re1 {[%emt 0:00:09]} b5 {[%emt 0:00:13]} 7. Bb3 {[%emt 0:00:01]} O-O {[%emt 0:00:12]} 8. h3 {[%emt 0:00:05]} d6 {[%emt 0:04:17]} 9. c3 {[%emt 0:00:08]} Nb8 {[%emt 0:02:27]} 10. d4 {[%emt 0:00:19]} Nbd7 {[%emt 0:00:04]} 11. Nbd2 {[%emt 0:00:07]} Bb7 {[%emt 0:00:03]} 12. Bc2 {[%emt 0:00:07]} c5 {[%emt 0:00:31]} 13. Nf1 {[%emt 0:04:02]} Re8 {[%emt 0:09:14]} 14. d5 {[%emt 0:00:14]} Bf8 {[%emt 0:02:19]} 15. Ng3 {[%emt 0:00:29]} g6 {[%emt 0:00:04]} 16. Bg5 {[%emt 0:00:54]} h6 {[%emt 0:00:16]} 17. Be3 {[%emt 0:02:31]} c4 {[%emt 0:02:12]} 18. a4 {[%emt 0:00:56]} Qc7 {[%emt 0:02:07]} 19. Ra3 {[%emt 0:01:37]} Nc5 {[%emt 0:02:19]} 20. Qd2 {[%emt 0:02:10]} Kh7 {[%emt 0:00:40]} 21. Rea1 {[%emt 0:00:33]} Rab8 {[%emt 0:10:26]} 22. axb5 {[%emt 0:07:00]} axb5 {[%emt 0:00:01]} 23. Qd1 {[%emt 0:01:05]} Ra8 {[%emt 0:04:10]} 24. Rxa8 {[%emt 0:14:40]} Rxa8 {[%emt 0:00:02]} 25. Rxa8 {[%emt 0:00:44]} Bxa8 {[%emt 0:00:01]} 26. Qa1 {[%emt 0:00:08]} Bb7 {[%emt 0:00:10]} 27. Qa7 {[%emt 0:01:22]} Nfd7 {[%emt 0:00:13]} 28. Nf1 {[%emt 0:03:28]} Bg7 {[%emt 0:18:12]} 29. N1d2 {[%emt 0:02:11]} Qb6 {[%emt 0:01:19]} 30. Qxb6 {[%emt 0:05:33]} Nxb6 {[%emt 0:00:02]} 31. b3 {[%emt 0:08:47]} cxb3 {[%emt 0:07:24]} 32. Nxb3 {[%emt 0:00:32]} Nbd7 {[%emt 0:04:44]} 33. Nfd2 {[%emt 0:08:47]} Ba6 {[%emt 0:04:16]} 34. Na5 {[%emt 0:14:40]} Bf6 {[%emt 0:00:48]} 35. Nc6 {[%emt 0:01:20]} Bg5 {[%emt 0:05:26]} 36. Bxg5 {[%emt 0:01:40]} hxg5 {[%emt 0:00:01]} 37. Nb1 {[%emt 0:01:18]} Nb6 {[%emt 0:01:56]} 38. Nb4 {[%emt 0:03:37]} Kg7 {[%emt 0:14:49]} 39. f3 {[%emt 0:06:24]} Kf8 {[%emt 0:01:07]} 40. Na3 {[%emt 0:05:44]} 1/2-1/2

[Event "KAZ-ch 2018"]
[Site "Almaty"]
[Date "2018.04.29"]
[Round "10"]
[White "Zhalmakhanov, Ramazan"]
[Black "Suleymenov, Alisher"]
[Result "1/2-1/2"]
[ECO "B30"]
[WhiteElo "2271"]
[BlackElo "2351"]
[Annotator "RC"]
[PlyCount "52"]
[EventDate "2018.??.??"]
[EventType "tourn"]
[EventCountry "KAZ"]
[SourceTitle "playchess.com"]
[Source "ChessBase"]
[SourceQuality "1"]
[TimeControl "40/5400+30:1800+30"]

1. e4 {[%emt 0:00:00]} c5 {[%emt 0:00:06]} 2. Nf3 {[%emt 0:01:57]} Nc6 {[%emt 0:00:42]} 3. c3 {[%emt 0:01:03]} e6 {[%emt 0:13:28]} 4. Bb5 {[%emt 0:05:02]} Nge7 {[%emt 0:16:43]} 5. O-O {[%emt 0:00:25]} a6 {[%emt 0:00:52]} 6. Ba4 {[%emt 0:00:31]} b5 {[%emt 0:04:58]} 7. Bc2 {[%emt 0:01:51]} Bb7 {[%emt 0:12:52]} 8. d4 {[%emt 0:19:21]} cxd4 {[%emt 0:00:05]} 9. Nxd4 {[%emt 0:00:55]} g6 {[%emt 0:08:00]} 10. Nxc6 {[%emt 0:19:35]} Nxc6 {[%emt 0:02:30]} 11. Bf4 {[%emt 0:00:32]} Be7 {[%emt 0:07:17]} 12. Nd2 {[%emt 0:08:54]} O-O {[%emt 0:00:14]} 13. Nf3 {[%emt 0:00:05]} Rc8 {[%emt 0:04:31]} 14. a4 {[%emt 0:03:50]} b4 {[%emt 0:01:41]} 15. c4 {[%emt 0:00:53]} Na5 {[%emt 0:09:20]} 16. b3 {[%emt 0:00:15]} d5 {[%emt 0:00:03]} 17. cxd5 {[%emt 0:00:08]} exd5 {[%emt 0:00:04]} 18. e5 {[%emt 0:00:07]} d4 {[%emt 0:00:42]} 19. Nxd4 {[%emt 0:15:03]} Qd5 {[%emt 0:00:34]} 20. Nf3 {[%emt 0:00:06]} Rfd8 {[%emt 0:03:36]} 21. Qb1 {[%emt 0:05:14]} Qc5 {[%emt 0:03:49]} 22. Ra2 {[%emt 0:02:08]} Qc3 {[%emt 0:03:56]} 23. Bd1 {[%emt 0:01:50]} Qd3 {[%emt 0:01:58]} 24. Bc2 {[%emt 0:00:57]} Qc3 {[%emt 0:02:26]} 25. Bd1 {[%emt 0:00:05]} Qd3 {[%emt 0:00:55]} 26. Bc2 {[%emt 0:00:02]} Qc3 {[%emt 0:00:18]} 1/2-1/2